[Event "Klubbmästerskap 2025 Torsdagar"]
[Site "Linköping, Sweden"]
[Date "2025.02.13"]
[Round "4.1"]
[White "Gustafsson, Nils"]
[Black "Nagy, Mate 2009"]
[Result "0-1"]
[TimeControl "90 min + 30 sec/move"]
[WhiteElo "1860"]
[BlackElo "1917"]

1. e4 {[%clk 01:30:49]} {[%emt 00:00:10]} c5 {[%clk 01:30:53]} {[%emt
00:00:07]} 2. Nf3 {[%clk 01:31:10]} {[%emt 00:00:08]} e6 {[%clk 01:31:16]}
{[%emt 00:00:09]} 3. d4 {[%clk 01:31:32]} {[%emt 00:00:08]} cxd4 {[%clk
01:31:33]} {[%emt 00:00:13]} 4. Nxd4 {[%clk 01:31:45]} {[%emt 00:00:16]} a6
{[%clk 01:31:42]} {[%emt 00:00:23]} 5. Nc3 {[%clk 01:31:53]} {[%emt 00:00:20]}
Qc7 {[%clk 01:32:01]} {[%emt 00:00:12]} 6. Be2 {[%clk 01:31:46]} {[%emt
00:00:36]} Nf6 {[%clk 01:31:48]} {[%emt 00:00:43]} 7. O-O {[%clk 01:31:30]}
{[%emt 00:00:43]} Be7 {[%clk 01:31:23]} {[%emt 00:00:58]} 8. f4 {[%clk
01:31:14]} {[%emt 00:00:45]} d6 {[%clk 01:27:32]} {[%emt 00:04:22]} 9. Be3
{[%clk 01:28:02]} {[%emt 00:03:42]} O-O {[%clk 01:27:06]} {[%emt 00:00:55]} 10.
a4 {[%clk 01:25:28]} {[%emt 00:03:05]} Bd7 {[%clk 01:26:08]} {[%emt 00:01:27]}
11. Kh1 {[%clk 01:22:09]} {[%emt 00:03:49]} Nc6 {[%clk 01:25:41]} {[%emt
00:00:57]} 12. Nf3 {[%clk 01:20:59]} {[%emt 00:01:40]} Nb4 {[%clk 01:22:55]}
{[%emt 00:03:16]} 13. a5 {[%clk 01:17:10]} {[%emt 00:04:19]} d5 {[%clk
01:19:23]} {[%emt 00:04:03]} 14. Ne5 {[%clk 00:52:47]} {[%emt 00:24:52]} dxe4
{[%clk 01:12:27]} {[%emt 00:07:26]} 15. g4 {[%clk 00:41:06]} {[%emt 00:12:11]}
Nbd5 {[%clk 01:07:41]} {[%emt 00:05:17]} 16. Bb6 {[%clk 00:38:06]} {[%emt
00:03:30]} Qc8 {[%clk 00:57:25]} {[%emt 00:10:46]} 17. g5 {[%clk 00:37:37]}
{[%emt 00:00:58]} Nxc3 {[%clk 00:56:12]} {[%emt 00:01:45]} 18. bxc3 {[%clk
00:37:41]} {[%emt 00:00:25]} Nd5 {[%clk 00:56:18]} {[%emt 00:00:24]} 19. c4
{[%clk 00:30:18]} {[%emt 00:07:53]} Nxb6 {[%clk 00:55:11]} {[%emt 00:01:36]} 20.
axb6 {[%clk 00:30:00]} {[%emt 00:00:50]} Bc6 {[%clk 00:52:02]} {[%emt
00:03:38]} 21. h4 {[%clk 00:29:21]} {[%emt 00:01:09]} Rd8 {[%clk 00:51:57]}
{[%emt 00:00:35]} 22. Qe1 {[%clk 00:28:10]} {[%emt 00:01:41]} Bd6 {[%clk
00:51:30]} {[%emt 00:00:57]} 23. Rd1 {[%clk 00:21:30]} {[%emt 00:07:11]} Bxe5
{[%clk 00:50:03]} {[%emt 00:01:57]} 24. fxe5 {[%clk 00:19:15]} {[%emt
00:02:44]} Rxd1 {[%clk 00:49:13]} {[%emt 00:01:20]} 25. Bxd1 {[%clk 00:18:36]}
{[%emt 00:01:09]} Qd7 {[%clk 00:46:38]} {[%emt 00:03:04]} 26. Bh5 {[%clk
00:12:46]} {[%emt 00:06:20]} g6 {[%clk 00:45:17]} {[%emt 00:01:51]} 27. Bg4
{[%clk 00:04:46]} {[%emt 00:08:29]} Rd8 {[%clk 00:38:45]} {[%emt 00:07:01]} 28.
h5 {[%clk 00:03:25]} {[%emt 00:01:52]} e3+ {[%clk 00:36:10]} {[%emt 00:03:05]}
29. Bf3 {[%clk 00:03:44]} {[%emt 00:00:11]} Bxf3+ {[%clk 00:32:27]} {[%emt
00:04:12]} 30. Rxf3 {[%clk 00:04:04]} {[%emt 00:00:09]} Qd2 {[%clk 00:32:26]}
{[%emt 00:00:31]} 31. Qxe3 {[%clk 00:02:30]} {[%emt 00:02:05]} Qxe3 {[%clk
00:32:28]} {[%emt 00:00:29]} 32. Rxe3 {[%clk 00:02:48]} {[%emt 00:00:12]} Rd1+
{[%clk 00:32:32]} {[%emt 00:00:25]} 33. Kg2 {[%clk 00:02:53]} {[%emt 00:00:25]}
gxh5 {[%clk 00:30:14]} {[%emt 00:02:49]} 34. Rc3 {[%clk 00:01:23]} {[%emt
00:02:01]} Rd8 {[%clk 00:27:17]} {[%emt 00:03:26]} 35. c5 {[%clk 00:01:19]}
{[%emt 00:00:34]} Rc8 {[%clk 00:27:27]} {[%emt 00:00:20]} 36. Kg3 {[%clk
00:01:01]} {[%emt 00:00:48]} a5 {[%clk 00:27:36]} {[%emt 00:00:21]} 37. Kh4
{[%clk 00:00:57]} {[%emt 00:00:34]} a4 {[%clk 00:27:56]} {[%emt 00:00:10]} 38.
Kxh5 {[%clk 00:01:14]} {[%emt 00:00:13]} Kg7 {[%clk 00:28:13]} {[%emt
00:00:13]} 39. Kg4 {[%clk 00:00:35]} {[%emt 00:01:09]} Kg6 {[%clk 00:21:48]}
{[%emt 00:06:55]} 40. Rc4 {[%clk 00:00:37]} {[%emt 00:00:29]} a3 {[%clk
00:21:49]} {[%emt 00:00:28]} 41. Ra4 {[%clk 00:00:58]} {[%emt 00:00:09]} Rxc5
{[%clk 00:21:51]} {[%emt 00:00:27]} 42. Rxa3 {[%clk 00:01:22]} {[%emt
00:00:06]} Rxe5 {[%clk 00:20:55]} {[%emt 00:01:25]} 43. Ra7 {[%clk 00:01:30]}
{[%emt 00:00:23]} Rxg5+ {[%clk 00:21:17]} {[%emt 00:00:08]} 44. Kf3 {[%clk
00:01:36]} {[%emt 00:00:25]} Rc5 {[%clk 00:21:35]} {[%emt 00:00:11]} 45. Rxb7
{[%clk 00:01:23]} {[%emt 00:00:43]} Rxc2 {[%clk 00:21:53]} {[%emt 00:00:13]} 46.
Rb8 {[%clk 00:00:35]} {[%emt 00:01:19]} Rb2 {[%clk 00:22:04]} {[%emt 00:00:18]}
47. Ke3 {[%clk 00:00:32]} {[%emt 00:00:33]} h5 {[%clk 00:22:10]} {[%emt
00:00:24]} 48. b7 {[%clk 00:00:53]} {[%emt 00:00:09]} Kf5 {[%clk 00:22:19]}
{[%emt 00:00:20]} 49. Rf8 {[%clk 00:00:38]} {[%emt 00:00:45]} Rxb7 {[%clk
00:22:40]} {[%emt 00:00:09]} 0-1

[Event "Klubbmästerskap 2025 Torsdagar"]
[Site "Linköping, Sweden"]
[Date "2025.02.13"]
[Round "4.2"]
[White "Löfgren, Vide"]
[Black "Roginski, Hugo"]
[Result "1-0"]
[TimeControl "90 min + 30 sec/move"]
[WhiteElo "1928"]
[BlackElo "1884"]

1. e4 {[%clk 01:30:50]} {[%emt 00:00:09]} e5 {[%clk 01:30:56]} {[%emt
00:00:04]} 2. Bc4 {[%clk 01:30:52]} {[%emt 00:00:28]} Nc6 {[%clk 01:30:30]}
{[%emt 00:00:56]} 3. d3 {[%clk 01:30:10]} {[%emt 00:01:13]} Bc5 {[%clk
01:25:10]} {[%emt 00:05:49]} 4. Nf3 {[%clk 01:27:30]} {[%emt 00:03:11]} Nf6
{[%clk 01:24:02]} {[%emt 00:01:38]} 5. Be3 {[%clk 01:25:39]} {[%emt 00:02:21]}
Bb6 {[%clk 01:22:03]} {[%emt 00:02:29]} 6. Nc3 {[%clk 01:25:01]} {[%emt
00:01:09]} d6 {[%clk 01:21:27]} {[%emt 00:01:05]} 7. Qd2 {[%clk 01:18:53]}
{[%emt 00:06:38]} Na5 {[%clk 01:10:43]} {[%emt 00:11:14]} 8. Bb3 {[%clk
01:18:14]} {[%emt 00:01:10]} Nxb3 {[%clk 01:09:36]} {[%emt 00:01:36]} 9. axb3
{[%clk 01:18:31]} {[%emt 00:00:13]} Bd7 {[%clk 01:09:37]} {[%emt 00:00:29]} 10.
O-O {[%clk 01:17:11]} {[%emt 00:01:51]} Ng4 {[%clk 01:00:14]} {[%emt 00:09:52]}
11. Bxb6 {[%clk 01:17:27]} {[%emt 00:00:14]} axb6 {[%clk 01:00:37]} {[%emt
00:00:07]} 12. Rxa8 {[%clk 01:07:14]} {[%emt 00:10:44]} Qxa8 {[%clk 01:00:10]}
{[%emt 00:00:56]} 13. Qg5 {[%clk 01:06:57]} {[%emt 00:00:47]} O-O {[%clk
00:55:49]} {[%emt 00:04:51]} 14. Nd5 {[%clk 01:01:27]} {[%emt 00:06:01]} f6
{[%clk 00:52:18]} {[%emt 00:04:01]} 15. Qh5 {[%clk 00:59:06]} {[%emt 00:02:48]}
Qd8 {[%clk 00:51:39]} {[%emt 00:01:12]} 16. h3 {[%clk 00:57:15]} {[%emt
00:02:22]} Nh6 {[%clk 00:52:01]} {[%emt 00:00:07]} 17. g4 {[%clk 00:39:43]}
{[%emt 00:18:02]} c6 {[%clk 00:40:36]} {[%emt 00:11:55]} 18. Ne3 {[%clk
00:39:20]} {[%emt 00:00:54]} Qe8 {[%clk 00:39:13]} {[%emt 00:01:52]} 19. Qxe8
{[%clk 00:38:51]} {[%emt 00:01:00]} Rxe8 {[%clk 00:39:10]} {[%emt 00:00:32]} 20.
Nc4 {[%clk 00:39:09]} {[%emt 00:00:12]} Nf7 {[%clk 00:37:09]} {[%emt 00:02:30]}
21. Nxb6 {[%clk 00:39:23]} {[%emt 00:00:17]} Be6 {[%clk 00:37:03]} {[%emt
00:00:35]} 22. Ra1 {[%clk 00:36:33]} {[%emt 00:03:21]} h5 {[%clk 00:33:05]}
{[%emt 00:04:26]} 23. Nh2 {[%clk 00:32:56]} {[%emt 00:04:07]} Ng5 {[%clk
00:28:52]} {[%emt 00:04:43]} 24. Kg2 {[%clk 00:27:07]} {[%emt 00:06:20]} d5
{[%clk 00:25:30]} {[%emt 00:03:53]} 25. h4 {[%clk 00:26:15]} {[%emt 00:01:22]}
Nf7 {[%clk 00:25:19]} {[%emt 00:00:39]} 26. gxh5 {[%clk 00:24:14]} {[%emt
00:02:32]} dxe4 {[%clk 00:25:18]} {[%emt 00:00:31]} 27. dxe4 {[%clk 00:24:40]}
{[%emt 00:00:04]} Rd8 {[%clk 00:24:08]} {[%emt 00:01:39]} 28. Nf1 {[%clk
00:19:23]} {[%emt 00:05:48]} f5 {[%clk 00:17:00]} {[%emt 00:07:38]} 29. exf5
{[%clk 00:17:11]} {[%emt 00:02:42]} Bxf5 {[%clk 00:17:25]} {[%emt 00:00:05]} 30.
Ne3 {[%clk 00:17:03]} {[%emt 00:00:39]} Be4+ {[%clk 00:17:24]} {[%emt
00:00:30]} 31. Kg3 {[%clk 00:16:38]} {[%emt 00:00:55]} Rd2 {[%clk 00:16:39]}
{[%emt 00:01:14]} 32. Ra8+ {[%clk 00:14:37]} {[%emt 00:02:31]} Kh7 {[%clk
00:15:51]} {[%emt 00:01:17]} 33. Nbc4 {[%clk 00:14:46]} {[%emt 00:00:22]} Re2
{[%clk 00:13:45]} {[%emt 00:02:36]} 34. Rf8 {[%clk 00:11:55]} {[%emt 00:03:18]}
b5 {[%clk 00:10:56]} {[%emt 00:03:22]} 35. Rxf7 {[%clk 00:09:43]} {[%emt
00:02:43]} bxc4 {[%clk 00:11:20]} {[%emt 00:00:06]} 36. bxc4 {[%clk 00:09:40]}
{[%emt 00:00:34]} Re1 {[%clk 00:09:12]} {[%emt 00:02:37]} 37. f3 {[%clk
00:06:52]} {[%emt 00:03:19]} Bd3 {[%clk 00:05:09]} {[%emt 00:04:32]} 38. cxd3
{[%clk 00:05:46]} {[%emt 00:01:36]} Rxe3 {[%clk 00:05:33]} {[%emt 00:00:05]} 39.
Rd7 {[%clk 00:03:51]} {[%emt 00:02:27]} Re2 {[%clk 00:05:01]} {[%emt 00:01:01]}
40. Rd6 {[%clk 00:04:03]} {[%emt 00:00:19]} Rxb2 {[%clk 00:04:18]} {[%emt
00:01:13]} 41. Rxc6 {[%clk 00:04:19]} {[%emt 00:00:15]} Rc2 {[%clk 00:04:16]}
{[%emt 00:00:31]} 42. Rc5 {[%clk 00:03:45]} {[%emt 00:01:05]} Rc3 {[%clk
00:04:30]} {[%emt 00:00:16]} 43. Rd5 {[%clk 00:04:08]} {[%emt 00:00:08]} 1-0

[Event "Klubbmästerskap 2025 Torsdagar"]
[Site "Linköping, Sweden"]
[Date "2025.02.13"]
[Round "4.3"]
[White "Skytt, Klas"]
[Black "Westerberg, Hampus"]
[Result "0-1"]
[TimeControl "90 min + 30 sec/move"]
[WhiteElo "1764"]
[BlackElo "1851"]

1. d4 {[%clk 01:30:50]} {[%emt 00:00:08]} Nf6 {[%clk 01:30:44]} {[%emt
00:00:18]} 2. c4 {[%clk 01:29:53]} {[%emt 00:01:27]} g6 {[%clk 01:31:06]}
{[%emt 00:00:08]} 3. Nc3 {[%clk 01:29:59]} {[%emt 00:00:24]} d5 {[%clk
01:31:30]} {[%emt 00:00:06]} 4. cxd5 {[%clk 01:27:45]} {[%emt 00:02:43]} Nxd5
{[%clk 01:31:49]} {[%emt 00:00:11]} 5. e4 {[%clk 01:27:49]} {[%emt 00:00:26]}
Nxc3 {[%clk 01:32:11]} {[%emt 00:00:09]} 6. bxc3 {[%clk 01:27:54]} {[%emt
00:00:25]} Bg7 {[%clk 01:32:31]} {[%emt 00:00:10]} 7. Bc4 {[%clk 01:26:55]}
{[%emt 00:01:30]} O-O {[%clk 01:32:37]} {[%emt 00:00:24]} 8. Ne2 {[%clk
01:25:15]} {[%emt 00:02:09]} c5 {[%clk 01:27:50]} {[%emt 00:05:17]} 9. O-O
{[%clk 01:21:57]} {[%emt 00:03:48]} Nc6 {[%clk 01:27:56]} {[%emt 00:00:23]} 10.
Bb2 {[%clk 01:17:17]} {[%emt 00:05:10]} Na5 {[%clk 01:19:16]} {[%emt 00:09:10]}
11. Bd3 {[%clk 01:14:23]} {[%emt 00:03:23]} Qc7 {[%clk 01:13:12]} {[%emt
00:06:34]} 12. Rc1 {[%clk 01:12:07]} {[%emt 00:02:47]} Rd8 {[%clk 01:10:10]}
{[%emt 00:03:32]} 13. Bb1 {[%clk 00:54:00]} {[%emt 00:18:37]} Nc4 {[%clk
00:50:42]} {[%emt 00:19:58]} 14. Ba1 {[%clk 00:53:55]} {[%emt 00:00:35]} e6
{[%clk 00:50:22]} {[%emt 00:00:49]} 15. Qa4 {[%clk 00:50:27]} {[%emt 00:03:58]}
Nd2 {[%clk 00:45:58]} {[%emt 00:04:54]} 16. Rfd1 {[%clk 00:50:46]} {[%emt
00:00:11]} Nxb1 {[%clk 00:45:44]} {[%emt 00:00:44]} 17. Rxb1 {[%clk 00:51:06]}
{[%emt 00:00:10]} Bd7 {[%clk 00:43:02]} {[%emt 00:03:13]} 18. Qa3 {[%clk
00:48:45]} {[%emt 00:02:51]} Bf8 {[%clk 00:42:09]} {[%emt 00:01:22]} 19. Qc1
{[%clk 00:48:29]} {[%emt 00:00:46]} Bc6 {[%clk 00:41:56]} {[%emt 00:00:43]} 20.
f3 {[%clk 00:46:36]} {[%emt 00:02:23]} Qe7 {[%clk 00:40:50]} {[%emt 00:01:37]}
21. e5 {[%clk 00:42:41]} {[%emt 00:04:25]} Rac8 {[%clk 00:37:32]} {[%emt
00:03:47]} 22. Qe3 {[%clk 00:41:31]} {[%emt 00:01:40]} Qh4 {[%clk 00:30:06]}
{[%emt 00:07:56]} 23. f4 {[%clk 00:37:11]} {[%emt 00:04:50]} Qg4 {[%clk
00:28:22]} {[%emt 00:02:14]} 24. Qf2 {[%clk 00:35:46]} {[%emt 00:01:54]} Rd7
{[%clk 00:22:26]} {[%emt 00:06:27]} 25. h3 {[%clk 00:34:31]} {[%emt 00:01:44]}
Qh5 {[%clk 00:22:25]} {[%emt 00:00:32]} 26. Bb2 {[%clk 00:32:45]} {[%emt
00:02:15]} Rcd8 {[%clk 00:21:43]} {[%emt 00:01:13]} 27. Kh2 {[%clk 00:28:47]}
{[%emt 00:04:28]} Be7 {[%clk 00:19:38]} {[%emt 00:02:36]} 28. g4 {[%clk
00:20:39]} {[%emt 00:08:38]} Qh6 {[%clk 00:19:37]} {[%emt 00:00:31]} 29. Bc1
{[%clk 00:18:57]} {[%emt 00:02:12]} Qg7 {[%clk 00:19:32]} {[%emt 00:00:34]} 30.
Be3 {[%clk 00:14:07]} {[%emt 00:05:20]} f6 {[%clk 00:15:25]} {[%emt 00:04:38]}
31. Rg1 {[%clk 00:12:11]} {[%emt 00:02:25]} fxe5 {[%clk 00:15:29]} {[%emt
00:00:25]} 32. fxe5 {[%clk 00:08:38]} {[%emt 00:04:03]} Rf8 {[%clk 00:14:15]}
{[%emt 00:01:45]} 33. Qe1 {[%clk 00:07:59]} {[%emt 00:01:09]} Rf3 {[%clk
00:13:40]} {[%emt 00:01:05]} 34. Qd2 {[%clk 00:07:14]} {[%emt 00:01:14]} Qf7
{[%clk 00:12:20]} {[%emt 00:01:50]} 35. Nf4 {[%clk 00:04:21]} {[%emt 00:03:23]}
cxd4 {[%clk 00:10:31]} {[%emt 00:02:19]} 36. cxd4 {[%clk 00:04:10]} {[%emt
00:00:42]} g5 {[%clk 00:10:10]} {[%emt 00:00:50]} 37. Nh5 {[%clk 00:03:56]}
{[%emt 00:00:44]} h6 {[%clk 00:09:03]} {[%emt 00:01:38]} 38. Rg3 {[%clk
00:03:03]} {[%emt 00:01:22]} Rd8 {[%clk 00:07:24]} {[%emt 00:02:09]} 39. Qe2
{[%clk 00:02:35]} {[%emt 00:00:58]} Rf8 {[%clk 00:06:31]} {[%emt 00:01:23]} 40.
Nf6+ {[%clk 00:02:06]} {[%emt 00:00:59]} Bxf6 {[%clk 00:06:07]} {[%emt
00:00:54]} 41. exf6 {[%clk 00:01:13]} {[%emt 00:01:23]} Rxg3 {[%clk 00:05:53]}
{[%emt 00:00:44]} 42. Kxg3 {[%clk 00:01:13]} {[%emt 00:00:30]} Qxf6 {[%clk
00:06:15]} {[%emt 00:00:08]} 43. Rb3 {[%clk 00:00:52]} {[%emt 00:00:51]} Qf3+
{[%clk 00:05:01]} {[%emt 00:01:43]} 44. Qxf3 {[%clk 00:01:08]} {[%emt
00:00:14]} Rxf3+ {[%clk 00:05:22]} {[%emt 00:00:08]} 45. Kh2 {[%clk 00:01:19]}
{[%emt 00:00:20]} Bd5 {[%clk 00:05:35]} {[%emt 00:00:17]} 46. Ra3 {[%clk
00:01:01]} {[%emt 00:00:48]} Kf7 {[%clk 00:05:27]} {[%emt 00:00:37]} 47. Rd3
{[%clk 00:00:32]} {[%emt 00:01:00]} a6 {[%clk 00:05:18]} {[%emt 00:00:39]} 48.
a4 {[%clk 00:00:39]} {[%emt 00:00:23]} b5 {[%clk 00:05:25]} {[%emt 00:00:23]}
49. axb5 {[%clk 00:01:00]} {[%emt 00:00:10]} axb5 {[%clk 00:05:48]} {[%emt
00:00:07]} 50. Rc3 {[%clk 00:01:12]} {[%emt 00:00:18]} Kg6 {[%clk 00:05:38]}
{[%emt 00:00:40]} 51. Ra3 {[%clk 00:00:41]} {[%emt 00:01:01]} b4 {[%clk
00:06:00]} {[%emt 00:00:08]} 52. Rd3 {[%clk 00:00:37]} {[%emt 00:00:34]} b3
{[%clk 00:06:21]} {[%emt 00:00:09]} 0-1

[Event "Klubbmästerskap 2025 Torsdagar"]
[Site "Linköping, Sweden"]
[Date "2025.02.13"]
[Round "4.4"]
[White "Snällfot, Magnus"]
[Black "Lilljebjörn, Erik Gustaf"]
[Result "1-0"]
[TimeControl "90 min + 30 sec/move"]
[WhiteElo "1778"]
[BlackElo "1783"]

1. e4 {[%clk 01:30:56]} {[%emt 00:00:02]} c6 {[%clk 01:30:51]} {[%emt
00:00:10]} 2. d4 {[%clk 01:31:15]} {[%emt 00:00:11]} d5 {[%clk 01:31:12]}
{[%emt 00:00:09]} 3. exd5 {[%clk 01:31:41]} {[%emt 00:00:05]} cxd5 {[%clk
01:31:34]} {[%emt 00:00:08]} 4. c4 {[%clk 01:31:59]} {[%emt 00:00:11]} Nf6
{[%clk 01:28:49]} {[%emt 00:03:15]} 5. Nc3 {[%clk 01:32:20]} {[%emt 00:00:09]}
e6 {[%clk 01:24:59]} {[%emt 00:04:20]} 6. c5 {[%clk 01:32:38]} {[%emt
00:00:12]} Be7 {[%clk 01:24:26]} {[%emt 00:01:03]} 7. Nf3 {[%clk 01:31:26]}
{[%emt 00:01:42]} O-O {[%clk 01:23:42]} {[%emt 00:01:13]} 8. Bf4 {[%clk
01:30:32]} {[%emt 00:01:24]} a6 {[%clk 01:23:30]} {[%emt 00:00:42]} 9. Bd3
{[%clk 01:30:22]} {[%emt 00:00:39]} b5 {[%clk 01:19:55]} {[%emt 00:04:07]} 10.
b4 {[%clk 01:29:10]} {[%emt 00:01:42]} Bb7 {[%clk 01:16:27]} {[%emt 00:03:58]}
11. a4 {[%clk 01:26:54]} {[%emt 00:02:46]} Ne4 {[%clk 01:11:39]} {[%emt
00:05:18]} 12. Qc2 {[%clk 01:23:49]} {[%emt 00:03:35]} Nxc3 {[%clk 01:10:55]}
{[%emt 00:01:15]} 13. Qxc3 {[%clk 01:23:50]} {[%emt 00:00:28]} Nc6 {[%clk
01:07:31]} {[%emt 00:03:54]} 14. O-O {[%clk 01:23:44]} {[%emt 00:00:35]} a5
{[%clk 00:59:45]} {[%emt 00:08:17]} 15. axb5 {[%clk 01:20:18]} {[%emt
00:03:56]} Nxb4 {[%clk 00:58:23]} {[%emt 00:01:52]} 16. c6 {[%clk 00:58:20]}
{[%emt 00:22:27]} Bc8 {[%clk 00:55:00]} {[%emt 00:03:54]} 17. Rfc1 {[%clk
00:49:21]} {[%emt 00:09:28]} Qb6 {[%clk 00:49:15]} {[%emt 00:06:15]} 18. Bf1
{[%clk 00:44:03]} {[%emt 00:05:48]} f6 {[%clk 00:46:24]} {[%emt 00:03:21]} 19.
Nd2 {[%clk 00:40:03]} {[%emt 00:04:30]} e5 {[%clk 00:41:07]} {[%emt 00:05:48]}
20. dxe5 {[%clk 00:33:09]} {[%emt 00:07:24]} fxe5 {[%clk 00:40:15]} {[%emt
00:01:22]} 21. Bxe5 {[%clk 00:29:09]} {[%emt 00:04:30]} Qxf2+ {[%clk 00:40:24]}
{[%emt 00:00:20]} 22. Kh1 {[%clk 00:29:26]} {[%emt 00:00:13]} Bf6 {[%clk
00:40:16]} {[%emt 00:00:38]} 23. Nf3 {[%clk 00:26:03]} {[%emt 00:03:53]} Bxe5
{[%clk 00:31:52]} {[%emt 00:08:55]} 24. Nxe5 {[%clk 00:22:17]} {[%emt
00:04:16]} Be6 {[%clk 00:27:01]} {[%emt 00:05:20]} 25. Nd3 {[%clk 00:20:08]}
{[%emt 00:02:39]} Qf5 {[%clk 00:22:04]} {[%emt 00:05:26]} 26. Nxb4 {[%clk
00:16:37]} {[%emt 00:04:01]} axb4 {[%clk 00:22:21]} {[%emt 00:00:14]} 27. Qd3
{[%clk 00:16:48]} {[%emt 00:00:18]} Rxa1 {[%clk 00:18:46]} {[%emt 00:04:05]} 28.
Rxa1 {[%clk 00:16:57]} {[%emt 00:00:21]} Qf6 {[%clk 00:14:28]} {[%emt
00:04:49]} 29. Rd1 {[%clk 00:11:35]} {[%emt 00:05:52]} b3 {[%clk 00:14:20]}
{[%emt 00:00:39]} 30. b6 {[%clk 00:11:14]} {[%emt 00:00:51]} Bg4 {[%clk
00:12:07]} {[%emt 00:02:42]} 31. Be2 {[%clk 00:02:56]} {[%emt 00:08:48]} Bxe2
{[%clk 00:10:21]} {[%emt 00:02:16]} 32. Qxe2 {[%clk 00:02:36]} {[%emt
00:00:50]} Qxc6 {[%clk 00:09:28]} {[%emt 00:01:24]} 33. Qe3 {[%clk 00:02:15]}
{[%emt 00:00:50]} b2 {[%clk 00:06:55]} {[%emt 00:03:03]} 34. h3 {[%clk
00:02:06]} {[%emt 00:00:39]} Rb8 {[%clk 00:05:20]} {[%emt 00:02:05]} 35. Rb1
{[%clk 00:01:12]} {[%emt 00:01:24]} Qxb6 {[%emt 00:00:46]} 36. Qe5 {[%clk
00:01:03]} {[%emt 00:00:35]} Qc6 {[%clk 00:03:45]} {[%emt 00:01:53]} 37. Qxb8+
{[%clk 00:00:57]} {[%emt 00:00:36]} 1-0

[Event "Klubbmästerskap 2025 Torsdagar"]
[Site "Linköping, Sweden"]
[Date "2025.02.13"]
[Round "4.5"]
[White "Ahlström, Per"]
[Black "Garner, Mårten"]
[Result "0-1"]
[TimeControl "90 min + 30 sec/move"]
[WhiteElo "1820"]
[BlackElo "1841"]

1. Nf3 {[%clk 01:30:38]} {[%emt 00:00:20]} d5 {[%clk 01:30:51]} {[%emt
00:00:09]} 2. g3 {[%clk 01:30:33]} {[%emt 00:00:36]} Nf6 {[%clk 01:31:02]}
{[%emt 00:00:19]} 3. Bg2 {[%clk 01:30:50]} {[%emt 00:00:13]} c5 {[%clk
01:30:14]} {[%emt 00:01:17]} 4. c4 {[%clk 01:30:10]} {[%emt 00:01:11]} d4
{[%clk 01:29:44]} {[%emt 00:00:59]} 5. d3 {[%clk 01:26:44]} {[%emt 00:03:57]}
Nc6 {[%clk 01:29:47]} {[%emt 00:00:26]} 6. Na3 {[%clk 01:25:27]} {[%emt
00:01:48]} e5 {[%clk 01:28:48]} {[%emt 00:01:28]} 7. Nc2 {[%clk 01:23:26]}
{[%emt 00:02:32]} Bd6 {[%clk 01:28:16]} {[%emt 00:01:00]} 8. a3 {[%clk
01:23:35]} {[%emt 00:00:24]} h6 {[%clk 01:27:50]} {[%emt 00:00:54]} 9. Rb1
{[%clk 01:23:05]} {[%emt 00:01:00]} a5 {[%clk 01:26:17]} {[%emt 00:02:03]} 10.
b3 {[%clk 01:21:00]} {[%emt 00:02:36]} Qc7 {[%clk 01:25:22]} {[%emt 00:01:23]}
11. O-O {[%clk 01:16:14]} {[%emt 00:05:17]} O-O {[%clk 01:24:11]} {[%emt
00:01:41]} 12. Bd2 {[%clk 01:07:47]} {[%emt 00:08:57]} Bf5 {[%clk 01:21:25]}
{[%emt 00:03:12]} 13. b4 {[%clk 01:00:34]} {[%emt 00:07:47]} axb4 {[%clk
01:12:59]} {[%emt 00:08:56]} 14. axb4 {[%clk 01:00:45]} {[%emt 00:00:19]} e4
{[%clk 01:11:08]} {[%emt 00:02:19]} 15. Nfe1 {[%clk 00:51:26]} {[%emt
00:09:49]} Rfe8 {[%clk 00:56:56]} {[%emt 00:14:41]} 16. bxc5 {[%clk 00:43:18]}
{[%emt 00:08:41]} Bxc5 {[%clk 00:56:29]} {[%emt 00:00:56]} 17. dxe4 {[%clk
00:31:48]} {[%emt 00:12:00]} Nxe4 {[%clk 00:55:43]} {[%emt 00:01:16]} 18. Nd3
{[%clk 00:30:01]} {[%emt 00:02:18]} Bd6 {[%clk 00:54:15]} {[%emt 00:01:55]} 19.
Rb5 {[%clk 00:24:17]} {[%emt 00:06:17]} Bg6 {[%clk 00:52:32]} {[%emt 00:02:09]}
20. Nf4 {[%clk 00:22:37]} {[%emt 00:02:14]} Nxd2 {[%clk 00:50:23]} {[%emt
00:02:38]} 21. Nd5 {[%clk 00:22:46]} {[%emt 00:00:20]} Qd7 {[%clk 00:44:30]}
{[%emt 00:06:23]} 22. Qxd2 {[%clk 00:23:05]} {[%emt 00:00:12]} Ra2 {[%clk
00:44:03]} {[%emt 00:00:56]} 23. Rc1 {[%clk 00:21:50]} {[%emt 00:01:46]} Ba3
{[%clk 00:43:52]} {[%emt 00:00:39]} 24. e4 {[%clk 00:14:24]} {[%emt 00:07:57]}
d3 {[%clk 00:40:51]} {[%emt 00:03:31]} 25. Qxd3 {[%clk 00:12:43]} {[%emt
00:02:12]} Bxc1 {[%clk 00:41:11]} {[%emt 00:00:09]} 26. Nf6+ {[%clk 00:13:06]}
{[%emt 00:00:07]} gxf6 {[%clk 00:40:06]} {[%emt 00:01:35]} 27. Qxd7 {[%clk
00:13:27]} {[%emt 00:00:10]} Rd8 {[%clk 00:40:02]} {[%emt 00:00:33]} 28. Qxb7
{[%clk 00:11:00]} {[%emt 00:02:58]} Rd1+ {[%clk 00:40:10]} {[%emt 00:00:21]} 29.
Bf1 {[%clk 00:11:22]} {[%emt 00:00:07]} Nd8 {[%clk 00:38:04]} {[%emt 00:02:36]}
30. Rd5 {[%clk 00:11:08]} {[%emt 00:00:45]} Rxf1+ {[%clk 00:36:50]} {[%emt
00:01:42]} 31. Kxf1 {[%clk 00:11:24]} {[%emt 00:00:15]} Nxb7 {[%clk 00:37:17]}
{[%emt 00:00:03]} 0-1